[Event "Marcel Invitational Chess-ch 2022"]
[Site "Dhaka"]
[Date "2022.04.23"]
[Round "5.2"]
[White "Mohammad Minhaz Uddin"]
[Black "Jamal Uddin"]
[Result "1-0"]
[ECO "B33"]
[WhiteElo "2267"]
[BlackElo "2106"]
[Annotator "TA"]
[PlyCount "75"]
[EventDate "2022.04.18"]
[EventCountry "BAN"]
[SourceTitle "playchess.com"]
[Source "ChessBase"]
[SourceQuality "1"]
[TimeControl "5400+30"]

{[%evp 17,75,52,47,42,66,43,106,73,79,69,79,28,38,15,43,31,47,31,68,70,59,68,67,76,83,83,240,237,268,222,198,121,111,75,172,135,348,353,353,351,341,331,373,333,651,642,706,733,1280,1280,29986,29987,29992,29993,29994,29995,29995,29996,29996,29997]} 1. e4 {[%emt 0:05:55]} c5 {[%emt 0:00:43]} 2. Nf3 {[%emt 0:00:04]} Nc6 {[%emt 0:00:10]} 3. d4 {[%emt 0:00:03]} cxd4 {[%emt 0:00:30]} 4. Nxd4 {[%emt 0:00:02]} Qb6 {[%emt 0:00:31]} 5. Nb3 {[%emt 0:00:05]} Nf6 {[%emt 0:00:10]} 6. Nc3 {[%emt 0:00:09]} e6 {[%emt 0:00:12]} 7. Be3 {[%emt 0:00:14]} Qc7 {[%emt 0:00:20]} 8. a3 {[%emt 0:02:07]} a6 {[%emt 0:00:37]} 9. f4 {[%emt 0:00:20]} d6 {[%emt 0:00:40]} 10. g4 $1 {[%emt 0:02:19][%cal Bg2g4,Bg4g5][%mdl 4] now scores much better than the old 10.Be2. B33: Sicilian: Pelikan and Sveshnikov Variations.} b5 {[%emt 0:02:42]} 11. Bg2 {[%emt 0:01:05]} (11. g5 $5 {[%cal Rg5f6]} Nd7 12. Bg2 $14) 11... Bb7 {[%emt 0:00:29]} ({Black should try} 11... Nd7 $14) 12. g5 {[%emt 0:04:12] White is better.} Nd7 {[%emt 0:00:51]} 13. h4 {[%emt 0:00:44]} Nb6 {[%emt 0:03:36] [#]} 14. Nd2 $146 {[%emt 0:04:52]} (14. Qe2 Nc4 15. Bc1 Qb6 16. Nd1 Rc8 17. c3 N6a5 18. Nxa5 Nxa5 19. Be3 Qc7 20. Nf2) (14. Qe2 $16) ({Predecessor:} 14. Qe2 Nc4 15. Bc1 Qb6 16. Nd1 Rc8 17. c3 N6a5 18. Nxa5 Nxa5 19. Be3 Qc7 20. Nf2 {1-0 (31) Gretarsson,H (2571)-Piasetski,L (2222) Reykjavik 2019}) 14... Na5 {[%emt 0:03:14]} 15. Qe2 {[%emt 0:00:44]} Nbc4 {[%emt 0:00:49]} 16. Nxc4 {[%emt 0:00:03]} Nxc4 {[%emt 0:00:13]} 17. Bd4 {[%emt 0:04:56]} e5 {[%emt 0:10:15] [#]} 18. Nd5 $1 {[%emt 0:00:24]} Bxd5 {[%emt 0:01:18]} 19. exd5 {[%emt 0:00:02] Strongly threatening fxe5.} Be7 {[%emt 0:10:22][%csl LRd4,LRf4]} 20. Bc3 {[%emt 0:09:16]} Rc8 {[%emt 0:02:45]} 21. Rh3 {[%emt 0:04:07] aiming for b3.} f6 $2 {[%emt 0:09:20]} (21... Qc5) (21... Qc5 $16 {was necessary.}) 22. b3 $18 {[%emt 0:09:55]} Nb6 {[%emt 0:02:53]} 23. O-O-O {[%emt 0:00:24][%cal Be1c1,Bc1b2,Bb2a2][%mdl 32] Hoping for gxf6.} Nd7 {[%emt 0:01:40]} 24. Re3 {[%emt 0:03:58]} (24. Be4) (24. Be4 $18) 24... O-O $16 {[%emt 0:01:01][%cal Oe5f4]} 25. Bh3 {[%emt 0:01:22] White is more active. A strong pair of Bishops.} Rcd8 {[%emt 0:02:22]} (25... exf4 $16 26. Rxe7 Qxc3 27. Be6+ Kh8) 26. Kb2 {[%emt 0:23:54]} Nc5 $2 {[%emt 0:03:58]} (26... f5 $16 {is a better defense.} 27. fxe5 dxe5) 27. gxf6 $18 {[%emt 0:02:07]} ({Not} 27. fxe5 fxe5 28. Kb1 Rf4 $16) 27... Bxf6 {[%emt 0:08:48]} 28. fxe5 {[%emt 0:00:02]} dxe5 {[%emt 0:00:55]} 29. Bxe5 {[%emt 0:00:44]} Qb6 {[%emt 0:01:06]} 30. h5 {[%emt 0:09:18]} Rb8 $2 {[%emt 0:05:00]} (30... Rde8) 31. Ka2 {[%emt 0:01:32]} Bxe5 {[%emt 0:00:49]} 32. Rxe5 {[%emt 0:00:02]} b4 {[%emt 0:01:33]} 33. d6 {[%emt 0:01:22] Re7 would kill now.} Kh8 {[%emt 0:09:35]} 34. h6 {[%emt 0:04:06] White mates.} gxh6 {[%emt 0:17:11]} 35. Re7 {[%emt 0:00:52]} Rf6 {[%emt 0:00:31] [#]} 36. Rxh7+ $3 {[%emt 0:00:32][%mdl 512]} Kxh7 {[%emt 0:00:40]} 37. Qe7+ {[%emt 0:00:02]} Kg6 {[%emt 0:00:33]} 38. Rg1+ {[%emt 0:00:03][%mdl 64] Overworked Piece.  Weighted Error Value: White=0.12 (very precise) /Black=0.72} 1-0

[Event "Marcel Invitational Chess-ch 2022"]
[Site "Dhaka"]
[Date "2022.04.23"]
[Round "5.3"]
[White "Jabed Al Azad"]
[Black "Anata, Choudhury"]
[Result "1/2-1/2"]
[ECO "B87"]
[WhiteElo "2043"]
[BlackElo "2170"]
[Annotator "TA"]
[PlyCount "154"]
[EventDate "2022.04.18"]
[EventCountry "BAN"]
[SourceTitle "playchess.com"]
[Source "ChessBase"]
[SourceQuality "1"]
[TimeControl "5400+30"]

{[%evp 21,154,0,0,0,0,0,0,-8,0,0,0,8,12,13,4,0,0,-7,-12,-18,16,0,0,0,0,0,0,-3,0,-2,0,0,0,0,0,-19,0,-21,0,0,0,0,0,-18,0,-4,0,0,0,0,0,0,0,0,0,0,10,0,0,0,0,-20,10,-9,13,0,0,0,0,-24,0,0,0,0,0,0,0,-3,-3,-29,-13,-33,-35,-35,-34,-34,-27,-33,-11,-11,-11,-11,-11,-11,-11,-11,-11,-11,-11,-11,-12,-12,-12,-12,-12,-12,-11,-11,-11,-11,-11,-28,-6,-40,-41,-43,-43,-49,0,-50,-50,-87,212,-7,-7,-7,-7,-7,-7,-7,-7,-7,-7,-7,0]} 1. e4 {[%emt 0:00:03]} c5 {[%emt 0:00:15]} 2. Nf3 {[%emt 0:00:06]} d6 {[%emt 0:00:08]} 3. d4 {[%emt 0:00:02]} cxd4 {[%emt 0:00:08]} 4. Nxd4 {[%emt 0:00:03]} Nf6 {[%emt 0:00:12]} 5. Nc3 {[%emt 0:00:04]} a6 {[%emt 0:00:25]} 6. Bc4 {[%emt 0:00:05]} e6 {[%emt 0:00:18]} 7. Bb3 {[%emt 0:00:03]} b5 {[%emt 0:00:13]} 8. O-O {[%emt 0:00:16]} Be7 {[%emt 0:00:10]} 9. Qf3 {[%emt 0:00:16]} Qb6 {[%emt 0:00:28]} 10. Be3 {[%emt 0:00:27]} Qb7 {[%emt 0:00:15]} 11. a3 {[%emt 0:01:00]} O-O {[%emt 0:00:28]} 12. Bg5 {[%emt 0:01:40] B87: Sicilian Scheveningen/Najdorf: 6 Bc4, with early ...b5.} Nc6 {[%emt 0:01:09]} 13. Nxc6 {[%emt 0:00:21]} Qxc6 {[%emt 0:00:11]} 14. Rad1 {[%emt 0:00:41]} Bb7 {[%emt 0:01:14]} 15. Qg3 {[%emt 0:01:14] [#]} Nh5 $146 {[%emt 0:02:26]} ({Predecessor:} 15... Qc5 16. Bh6 Ne8 17. Be3 Qc7 18. f4 Bf6 19. f5 Be5 20. Bf4 exf5 21. Bxe5 dxe5 22. Rxf5 Kh8 23. Qxe5 Qxe5 24. Rxe5 {1-0 (32) Sigfusson,S (2288)-Schartz,A (2123) Izmir 2004}) 16. Qh4 {[%emt 0:00:38]} Bxg5 {[%emt 0:00:09]} 17. Qxg5 {[%emt 0:00:26]} Nf6 {[%emt 0:00:16]} 18. Rfe1 {[%emt 0:00:48]} Rfd8 {[%emt 0:06:05]} 19. Rd3 {[%emt 0:00:45]} Qc5 {[%emt 0:00:28]} 20. Qh4 {[%emt 0:01:40]} Qe5 {[%emt 0:10:03]} 21. Qg3 {[%emt 0:02:14]} Qxg3 {[%emt 0:01:01]} 22. hxg3 {[%emt 0:00:04]} Kf8 {[%emt 0:00:16]} 23. f3 {[%emt 0:00:25]} Ke7 {[%emt 0:00:56]} 24. Red1 {[%emt 0:00:17]} Bc6 {[%emt 0:11:19]} 25. Kf2 {[%emt 0:01:11]} Ne8 {[%emt 0:04:33][%cal Bf6e8,Be8c7,Bc7a8,Ba8b6,Bb6d7,Bd7c5][%mdl 32]} 26. Re1 {[%emt 0:01:14]} Rac8 {[%emt 0:01:18]} 27. Rd4 {[%emt 0:00:59]} Rb8 {[%emt 0:02:41]} 28. Rd2 {[%emt 0:03:03]} Nc7 {[%emt 0:05:35]} 29. Red1 {[%emt 0:08:45]} Na8 {[%emt 0:01:44]} 30. Ne2 {[%emt 0:02:44]} Nb6 {[%emt 0:00:36]} 31. Nd4 {[%emt 0:00:40]} Be8 {[%emt 0:02:15]} 32. f4 {[%emt 0:01:33]} Rbc8 {[%emt 0:02:33]} 33. c3 {[%emt 0:00:39]} Nd7 {[%emt 0:01:58]} 34. g4 {[%emt 0:02:37]} Nc5 {[%emt 0:19:08]} 35. Bc2 {[%emt 0:00:20]} h6 {[%emt 0:00:08]} 36. Ke3 {[%emt 0:00:54]} Bd7 {[%emt 0:04:24]} 37. Kf3 {[%emt 0:02:31]} Nb7 {[%emt 0:02:53]} 38. Bd3 {[%emt 0:01:08]} Rh8 {[%emt 0:01:07]} 39. Rh1 {[%emt 0:00:29]} Nc5 {[%emt 0:04:26]} 40. Bc2 {[%emt 0:00:16]} Rb8 {[%emt 0:00:21]} 41. g3 {[%emt 0:01:47]} Rhd8 {[%emt 0:00:08]} 42. Rhd1 {[%emt 0:00:57]} Be8 {[%emt 0:00:16]} 43. Ke3 {[%emt 0:03:11]} Rdc8 {[%emt 0:00:48]} 44. Nb3 {[%emt 0:02:18]} Na4 {[%emt 0:00:27]} 45. Rb1 {[%emt 0:01:20]} (45. Rxd6 $2 Nxb2 46. R6d3 Rc7 $19) 45... Rc7 {[%emt 0:01:49]} 46. Nd4 {[%emt 0:01:32]} Nb6 {[%emt 0:00:51] [#] And now ...Nc4+ would win.} 47. Bd3 {[%emt 0:00:13]} Nd7 {[%emt 0:00:26]} 48. Rbd1 {[%emt 0:01:09]} Rb6 {[%emt 0:00:40]} 49. Kf3 {[%emt 0:00:52]} Nc5 {[%emt 0:01:15]} 50. Bc2 {[%emt 0:00:57]} a5 {[%emt 0:00:29][%cal Ba6a5,Ba5b4][%mdl 32]} 51. Nb3 {[%emt 0:12:29]} Na4 {[%emt 0:03:37]} 52. Bd3 {[%emt 0:00:49]} ({Don't go for} 52. Nxa5 $2 Nxb2 53. Rb1 Rxc3+ 54. Ke2 {[#]} Rxa3 $1 55. Rxb2 Rxa5 $19) 52... b4 {[%emt 0:00:49]} 53. axb4 {[%emt 0:00:43]} (53. Nxa5 $2 bxc3 54. bxc3 Bb5 $19) 53... axb4 {[%emt 0:00:09]} 54. c4 {[%emt 0:00:23]} Nc5 {[%emt 0:03:34]} 55. Nxc5 {[%emt 0:00:06]} dxc5 {[%emt 0:00:05]} 56. b3 {[%emt 0:00:30]} Ra6 {[%emt 0:00:16][%cal Oe6e5]} 57. e5 {[%emt 0:03:13]} Rd7 {[%emt 0:01:15]} 58. Bc2 {[%emt 0:01:37]} Ra2 {[%emt 0:00:15][%cal Oa2c2] Strongly threatening ...Rxc2!} 59. Rxd7+ {[%emt 0:01:30]} Bxd7 $11 {[%emt 0:00:03][%mdl 4096] Endgame KRB-KRB} 60. Rd2 {[%emt 0:00:05]} Ba4 {[%emt 0:03:58][%cal Oa4b3] Hoping for ...Bxb3!} 61. Ke3 {[%emt 0:01:12]} ({Much worse is} 61. bxa4 b3 62. Rd1 Rxc2 $17) 61... Bc6 {[%emt 0:01:51]} (61... Ra3 $5 62. Rd3 Bc6 $11) 62. Bd1 {[%emt 0:00:11]} Ra1 {[%emt 0:02:25]} 63. Rd3 {[%emt 0:00:53]} f6 {[%emt 0:00:29]} 64. Rd2 {[%emt 0:00:40]} fxe5 {[%emt 0:00:24]} 65. fxe5 {[%emt 0:00:02]} Be8 {[%emt 0:00:37]} 66. Kf4 {[%emt 0:00:36]} Rc1 {[%emt 0:00:21] ...Rc3 is the strong threat.} 67. Ke3 {[%emt 0:02:55]} Bg6 {[%emt 0:00:22]} 68. Kf2 {[%emt 0:01:01]} Be4 {[%emt 0:00:56]} 69. Ke3 {[%emt 0:01:24]} Bg6 {[%emt 0:00:44]} 70. Kf2 $1 {[%emt 0:00:15]} Rc3 {[%emt 0:00:07]} 71. Rd6 {[%emt 0:06:07]} Rd3 $2 {[%emt 0:00:49][%mdl 8192]} (71... Bd3 $17) 72. Rxd3 $2 {[%emt 0:00:09]} (72. Bc2 $18 Rxg3 73. Kxg3 (73. Bxg6 Rxg4 74. Bd3 Rg5 $14) 73... Bxc2 74. Rc6) 72... Bxd3 $18 {[%emt 0:00:03] KB-KB. The position is equal.} 73. Ke3 {[%emt 0:00:16]} Bb1 {[%emt 0:00:09]} 74. Kf4 {[%emt 0:00:28]} Kf7 {[%emt 0:01:33] aiming for ...Kg6.} 75. g5 {[%emt 0:02:42]} Kg6 {[%emt 0:00:44] Prevents Bh5+.} 76. gxh6 {[%emt 0:00:24]} Kxh6 {[%emt 0:00:33]} 77. g4 {[%emt 0:01:57]} g5+ {[%emt 0:00:23] Weighted Error Value: White=0.05 (flawless) /Black=0.04 (flawless)} (77... Kg6 $5) 1/2-1/2

[Event "Marcel Invitational Chess-ch 2022"]
[Site "Dhaka"]
[Date "2022.04.23"]
[Round "5.4"]
[White "Islam, Khandaker Aminul"]
[Black "Md, Sariatullah"]
[Result "1/2-1/2"]
[ECO "B00"]
[WhiteElo "2153"]
[BlackElo "1990"]
[Annotator "TA"]
[PlyCount "61"]
[EventDate "2022.04.18"]
[EventCountry "BAN"]
[SourceTitle "playchess.com"]
[Source "ChessBase"]
[SourceQuality "1"]
[TimeControl "5400+30"]

{[%evp 9,61,82,178,166,166,177,159,169,157,144,112,114,99,0,0,-56,-46,-45,-58,-57,18,17,70,64,73,26,66,9,13,11,11,8,5,-6,0,-15,-9,-35,-30,-32,-11,-20,-15,-31,-19,-15,-29,-56,-35,-31,-46,-46,-40,-143]} 1. d4 {[%emt 0:00:07]} b6 {[%emt 0:00:05]} 2. e4 {[%emt 0:00:13][%cal Be2e4,Be4f5,Bf5g6,Bg6h7][%mdl 32]} Bb7 {[%emt 0:00:05]} 3. Bd3 {[%emt 0:00:15]} e6 {[%emt 0:00:16]} 4. Be3 {[%emt 0:03:36]} f5 {[%emt 0:00:18]} 5. exf5 {[%emt 0:03:39]} Bxg2 {[%emt 0:00:24]} (5... Bb4+ $16 6. Kf1 exf5) 6. Qh5+ $18 {[%emt 0:00:13] B00: Queen's Fianchetto Defence, Nimzowitsch Defence.} g6 {[%emt 0:00:19] [#]} 7. fxg6 {[%emt 0:00:08] Hoping for g7+.} Bg7 {[%emt 0:00:07] Strongly threatening ...Nf6.} 8. gxh7+ {[%emt 0:01:56] White is clearly better.} Kf8 {[%emt 0:00:05] [#]} 9. Ne2 $1 {[%emt 0:04:43][%mdl 512]} Nf6 {[%emt 0:00:40] [#]} 10. Qh4 {[%emt 0:00:43] Black must now prevent Rg1.} Bxh1 {[%emt 0:00:11]} 11. Nf4 {[%emt 0:00:15] White is more active.} ({White should try} 11. Bg5 $16) 11... Nc6 $11 {[%emt 0:01:19][%cal Of6h7] And now ...Nxh7! would win.} 12. Ng6+ {[%emt 0:02:12]} (12. Nd2 $11) 12... Kf7 $1 $15 {[%emt 0:00:07]} 13. Nxh8+ {[%emt 0:01:15]} Qxh8 {[%emt 0:00:33] [#]} ({Don't play} 13... Bxh8 14. Nd2 $16) 14. Nd2 $146 {[%emt 0:02:53]} ({Predecessor:} 14. c3 Ne7 15. Nd2 Nf5 16. Bxf5 exf5 17. f3 Qxh7 18. Qxh7 Nxh7 19. Kf2 Bxf3 20. Nxf3 {1-0 (50) Oganian,M (2133)-Nazarov,M Krasnodar 2010}) 14... Ne7 {[%emt 0:00:06]} (14... Nb4 $15 15. f3 Nfd5) 15. f3 $36 {[%emt 0:02:21][%mdl 2048] White wants to play Ne4. White fights for an advantage.} Nf5 {[%emt 0:12:47]} (15... Ned5 16. Bf2 Nxh7 17. Bxh7 Nf6) (15... Ned5 $1 $11 16. Bf2 Nxh7 17. Bxh7 Nf6) 16. Bxf5 $14 {[%emt 0:02:08] Chess con chili.} exf5 {[%emt 0:04:33]} 17. Kf2 {[%emt 0:05:43]} ({White should play} 17. Ke2 $16) 17... Bxf3 {[%emt 0:01:54]} 18. Kxf3 {[%emt 0:00:46]} (18. Nxf3 $14 Ng4+ 19. Ke2) 18... Qxh7 $11 {[%emt 0:00:23]} 19. Qxh7 {[%emt 0:00:19]} Nxh7 {[%emt 0:00:08]} 20. c3 {[%emt 0:01:49]} Nf6 {[%emt 0:00:49]} 21. Bf4 {[%emt 0:00:39]} d6 {[%emt 0:00:08]} 22. Re1 {[%emt 0:00:41]} Rh8 {[%emt 0:00:48]} 23. Nf1 {[%emt 0:00:58]} Bh6 {[%emt 0:01:26]} 24. Bg3 {[%emt 0:01:28]} Bg5 {[%emt 0:00:26]} 25. Re2 {[%emt 0:00:27]} Ne4 {[%emt 0:03:08]} 26. Be1 {[%emt 0:01:05]} d5 {[%emt 0:11:20]} 27. Bg3 {[%emt 0:01:19]} c5 {[%emt 0:00:56]} 28. Be5 {[%emt 0:04:44]} (28. Ne3) 28... Bf6 {[%emt 0:00:29] Black is slightly better.} 29. Bxf6 {[%emt 0:00:53]} Kxf6 {[%emt 0:00:03]} (29... Nxf6 30. dxc5 bxc5 31. Kf4) ({But not} 29... Nxf6 30. dxc5 bxc5 31. Kf4 $14) 30. Ne3 {[%emt 0:01:52]} Ke6 {[%emt 0:02:16]} 31. Nf1 {[%emt 0:30:01] Blacks defense is rewarded with a draw.  Weighted Error Value: White=0.18 (very precise) /Black=0.16 (very precise)} (31. Rg2 $15) 1/2-1/2

[Event "Marcel Invitational Chess-ch 2022"]
[Site "Dhaka"]
[Date "2022.04.23"]
[Round "5.6"]
[White "Rahman, Syed Mahfuzur"]
[Black "Kazi Zarin, Tasnim"]
[Result "1-0"]
[ECO "D52"]
[WhiteElo "2099"]
[BlackElo "1816"]
[Annotator "TA"]
[PlyCount "77"]
[EventDate "2022.04.18"]
[EventCountry "BAN"]
[SourceTitle "playchess.com"]
[Source "ChessBase"]
[SourceQuality "1"]
[TimeControl "5400+30"]

{[%evp 16,77,25,4,4,-26,37,37,72,-5,-7,-10,-19,-11,0,-12,24,22,19,15,23,8,54,53,53,47,53,49,55,61,103,87,100,54,85,60,190,170,235,228,253,269,376,369,386,395,475,307,458,452,659,364,1125,1058,1432,1092,1695,1541,5297,5272,29988,29989,29996,29997]} 1. d4 {[%emt 0:00:04]} Nf6 {[%emt 0:09:11]} 2. Nf3 {[%emt 0:00:24]} e6 {[%emt 0:00:10]} 3. c4 {[%emt 0:00:07]} d5 {[%emt 0:00:13]} 4. Nc3 {[%emt 0:00:21]} c6 {[%emt 0:00:09]} 5. Bg5 {[%emt 0:01:16]} Nbd7 {[%emt 0:00:34]} 6. e3 {[%emt 0:00:04]} Qa5 {[%emt 0:00:59]} 7. Nd2 {[%emt 0:01:09]} Bb4 {[%emt 0:00:21]} 8. Qc2 {[%emt 0:00:19]} O-O {[%emt 0:02:05]} 9. Bf4 {[%emt 0:02:43]} Re8 {[%emt 0:02:24] D52: Queen's Gambit Declined: Cambridge Springs Variation.} 10. Be2 {[%emt 0:13:37] [#]} Qd8 $146 {[%emt 0:16:00]} (10... e5 $11 11. dxe5 Nxe5) ({Predecessor:} 10... e5 11. dxe5 Nxe5 12. O-O Nxc4 13. Nxc4 dxc4 14. Bxc4 Be6 15. Bxe6 Rxe6 16. Rfd1 Bxc3 17. bxc3 Nd5 18. c4 Nxf4 19. exf4 Rae8 20. g3 Re2 21. Qb3 Qc5 22. Qf3 Qxc4 23. Rd7 Re1+ {0-1 (23) Zhukova,N (2328)-Goryachkina,A (2579) Moscow 2020}) 11. O-O $14 {[%emt 0:08:44]} Qe7 {[%emt 0:02:31] White is slightly better.} 12. e4 {[%emt 0:15:40] White is more active.} (12. a3 Bxc3 13. bxc3 (13. Qxc3 dxc4 14. Bg3 b5)) (12. a3 $16 Bxc3 13. bxc3 (13. Qxc3 dxc4 14. Bg3 b5 $14)) 12... dxe4 $11 {[%emt 0:04:48]} 13. Ndxe4 {[%emt 0:01:36]} e5 {[%emt 0:01:49]} 14. dxe5 {[%emt 0:02:27]} Nxe5 {[%emt 0:00:59]} 15. Bg5 {[%emt 0:02:11][%cal Bf4g5,Bg5h4,Bh4g3][%mdl 32]} Bxc3 {[%emt 0:12:52]} 16. Nxc3 {[%emt 0:20:28]} h6 {[%emt 0:02:42]} 17. Bh4 {[%emt 0:00:20]} Ng6 {[%emt 0:00:31]} 18. Bg3 {[%emt 0:00:22]} Ne4 {[%emt 0:08:37]} (18... Bg4 $11 19. Bxg4 Nxg4) 19. Nxe4 $14 {[%emt 0:02:20]} Qxe4 {[%emt 0:00:01]} 20. Bd3 {[%emt 0:00:23]} Qe6 {[%emt 0:01:19]} 21. f4 {[%emt 0:04:08][%cal Bf2f4,Bf4f5,Bf5f6][%mdl 32] [#] Threatens to win with f5.} Qf6 {[%emt 0:01:49]} 22. f5 {[%emt 0:06:24]} Nf8 {[%emt 0:03:30]} 23. Qf2 {[%emt 0:01:01]} b6 {[%emt 0:06:34]} 24. Rad1 {[%emt 0:02:45]} (24. Bh4 $16 g5 25. fxg6 Qxf2+ 26. Rxf2 (26. Bxf2 Nxg6 27. Rae1 Rxe1 $16) 26... Nxg6 27. Bf6) 24... Ba6 {[%emt 0:03:27]} 25. b3 {[%emt 0:03:44]} Qe7 {[%emt 0:03:11] A mistake that costs the game.} ({Better is} 25... Nh7 $14) 26. f6 $18 {[%emt 0:03:08]} Qe3 {[%emt 0:00:32]} (26... Qxf6 $142 27. Qxf6 gxf6 28. Rxf6 c5 29. Rxh6 Rad8) 27. fxg7 {[%emt 0:00:38]} Qxf2+ {[%emt 0:00:03]} 28. Rxf2 {[%emt 0:00:29]} ({Don't play} 28. Bxf2 Ne6 29. Be4 Bb7 $18) 28... Kxg7 {[%emt 0:00:51]} 29. Rdf1 {[%emt 0:00:06]} Re7 {[%emt 0:00:41]} 30. Bh4 {[%emt 0:00:31]} Rc7 {[%emt 0:05:25]} 31. Bf6+ {[%emt 0:00:42] This bishop pair is nice.} Kg8 {[%emt 0:00:06]} 32. Rf3 {[%emt 0:00:39]} Ng6 {[%emt 0:02:35]} (32... Re8 $142 33. Rh3 Nd7 34. Rg3+ (34. Rxh6 Nxf6 35. Rhxf6 c5 $16) 34... Kf8 35. Bg7+ Ke7 36. Bxh6 Nc5 37. Re3+ Ne6 38. Bg5+ Kd6) 33. Rg3 {[%emt 0:02:54]} Kh7 $2 {[%emt 0:00:25]} (33... Re8 34. Bc3 Re6) 34. h4 {[%emt 0:00:05][%cal Bh2h4,Bh4h5][%mdl 32]} h5 {[%emt 0:02:06]} 35. Rg5 {[%emt 0:00:08]} Rac8 {[%emt 0:02:27]} 36. Rxh5+ {[%emt 0:00:51]} Kg8 {[%emt 0:00:01]} 37. Rh6 {[%emt 0:01:55] [#] Threatening mate with Rf5.} Kf8 {[%emt 0:01:40]} 38. h5 {[%emt 0:01:03]} Ne7 {[%emt 0:00:37]} 39. Rh8+ {[%emt 0:00:08] Weighted Error Value: White=0.22 (precise) /Black=0.65} 1-0